bitfinex-derivatives/quotes_BTCF0:USTF0_20241015
["timestamp","ask_amount","ask_price","bid_price","bid_amount"]
[1728952115628,0.07538,66340.0,66339.0,0.3608]
[1728952115836,0.24538,66340.0,66339.0,0.3608]
[1728952116634,0.24538,66340.0,66335.0,0.0004]
[1728952116635,0.075385,66336.0,66335.0,0.0004]
[1728952116842,0.245385,66336.0,66335.0,0.0004]
[1728952117833,0.697625,66336.0,66335.0,0.0004]
[1728952118028,0.245385,66336.0,66335.0,0.0004]
[1728952118335,0.245385,66336.0,66335.0,0.0104]
[1728952119332,0.075385,66336.0,66335.0,0.0174]
[1728952119641,0.075385,66336.0,66335.0,0.092786]
[1728952120739,0.075385,66336.0,66335.0,0.0174]
[1728952121239,0.245385,66336.0,66335.0,0.0174]
[1728952123330,0.245385,66336.0,66335.0,0.092786]
[1728952123530,0.075385,66336.0,66335.0,0.092786]
[1728952124442,0.10193718,66340.0,66335.0,0.1874]
[1728952124443,0.02655718,66340.0,66335.0,0.1874]
[1728952124742,0.075374,66345.0,66344.0,0.075375]
[1728952124935,0.075374,66345.0,66344.0,0.075775]
[1728952125250,0.17,66351.0,66344.0,0.075775]
[1728952125434,0.07537,66349.0,66348.0,0.07537]
[1728952125943,0.07537,66349.0,66344.0,0.0004]
[1728952125944,0.17,66351.0,66350.0,0.075369]
[1728952126142,0.075767,66352.0,66351.0,0.075368]
[1728952126441,0.075767,66352.0,66350.0,0.1704]
[1728952126442,0.075368,66351.0,66350.0,0.0004]
[1728952126745,0.077368,66351.0,66350.0,0.075769]
[1728952127240,0.077368,66351.0,66350.0,0.0004]
[1728952127547,0.077368,66351.0,66350.0,0.075769]
[1728952128443,0.249368,66351.0,66350.0,0.0004]
[1728952128944,0.247368,66351.0,66350.0,0.0004]
[1728952129248,0.249368,66351.0,66350.0,0.0014]
[1728952135441,0.610168,66351.0,66350.0,0.0014]
[1728952135642,0.249368,66351.0,66350.0,0.0014]
[1728952136441,0.610168,66351.0,66350.0,0.0014]
[1728952136646,0.249368,66351.0,66350.0,0.0014]
[1728952137441,0.004,66351.0,66350.0,0.246769]
[1728952137742,0.079368,66351.0,66350.0,0.0014]
[1728952139142,0.079368,66351.0,66350.0,0.076769]
[1728952139635,0.079368,66351.0,66350.0,0.0014]
[1728952141047,0.079368,66351.0,66350.0,0.00043086]
[1728952141247,0.079768,66351.0,66350.0,0.00043086]
[1728952144542,0.079768,66351.0,66341.0,0.0035]
[1728952144543,0.075374,66345.0,66341.0,0.0035]
[1728952144746,0.075374,66345.0,66335.0,0.0004]
[1728952144747,0.075385,66336.0,66335.0,0.0004]
[1728952144954,0.245385,66336.0,66335.0,0.0004]
[1728952145151,1.297625,66336.0,66335.0,0.0004]
[1728952145653,2.797625,66336.0,66335.0,0.0004]
[1728952146744,1.745385,66336.0,66335.0,0.0004]
[1728952146950,1.745385,66336.0,66335.0,0.0104]
[1728952147145,0.245385,66336.0,66335.0,0.0104]
[1728952147351,0.4224,66338.0,66336.0,0.075384]
[1728952147555,0.497783,66338.0,66337.0,0.0004]
[1728952147745,1.997783,66338.0,66337.0,0.0004]
[1728952148152,2.02520594,66338.0,66337.0,0.075784]
[1728952148744,2.02520594,66338.0,66337.0,0.0084]
[1728952148950,0.52520594,66338.0,66337.0,0.0084]
[1728952150154,0.52520594,66338.0,66337.0,0.0134]
[1728952160762,0.88600594,66338.0,66337.0,0.0134]
[1728952161062,0.52520594,66338.0,66337.0,0.0134]
[1728952161261,0.69520594,66338.0,66337.0,0.0134]
[1728952167163,0.52520594,66338.0,66337.0,0.0134]
[1728952168165,0.0004,66340.0,66337.0,0.980384]
[1728952168361,0.0004,66345.0,66337.0,0.980384]
[1728952168362,0.02777217,66343.0,66338.0,0.45224]
[1728952168567,0.0004,66345.0,66344.0,0.075376]
[1728952168764,0.0004,66352.0,66344.0,0.3612]
[1728952168957,0.0004,66352.0,66350.0,0.606569]
[1728952169871,0.02715876,66352.0,66350.0,0.436569]
[1728952170461,0.0054,66351.0,66350.0,0.437569]
[1728952170661,0.0054,66351.0,66350.0,0.076769]
[1728952172766,0.0054,66351.0,66350.0,0.246769]
[1728952174161,0.0039,66361.0,66350.0,0.7714]
[1728952174362,0.0004,66361.0,66360.0,0.245757]
[1728952174969,0.02744566,66361.0,66360.0,0.245757]
[1728952175164,0.02744566,66361.0,66360.0,1.297837]
[1728952175165,0.0004,66361.0,66360.0,1.297837]
[1728952175575,0.075746,66370.0,66369.0,0.075347]
[1728952175774,0.075746,66370.0,66369.0,0.0004]
[1728952175775,1.575746,66370.0,66369.0,0.0004]
[1728952175970,1.575746,66370.0,66369.0,0.075747]
[1728952175971,0.0004,66370.0,66369.0,0.075747]
[1728952176765,0.436546,66370.0,66369.0,0.0004]
[1728952176965,0.075746,66370.0,66369.0,0.0004]
[1728952177367,0.076746,66370.0,66369.0,0.0024]
[1728952179371,0.126546,66370.0,66369.0,0.0024]
[1728952180165,0.0014,66370.0,66369.0,0.077747]
[1728952183369,0.076746,66370.0,66369.0,0.077747]
[1728952184986,0.0014,66370.0,66369.0,0.077747]
[1728952189485,0.0014,66370.0,66369.0,0.078747]
[1728952189977,0.0014,66370.0,66369.0,0.076747]
[1728952190280,0.0004,66370.0,66369.0,0.076747]
[1728952190586,0.0014,66370.0,66369.0,0.077747]
[1728952192089,0.0014,66370.0,66369.0,0.529747]
[1728952192287,0.0014,66370.0,66369.0,1.129747]
[1728952192487,0.0004,66370.0,66369.0,1.128747]
[1728952192685,0.0014,66370.0,66369.0,1.129747]
[1728952195285,0.0014,66370.0,66369.0,0.529747]
[1728952195474,0.0014,66370.0,66369.0,1.129747]
[1728952196383,0.0004,66374.0,66369.0,1.129747]
[1728952196592,0.0004,66374.0,66373.0,0.606543]
[1728952196787,0.0035,66384.0,66373.0,0.606543]
[1728952196988,0.075335,66382.0,66381.0,0.075331]
[1728952197288,0.075335,66382.0,66381.0,0.436131]
[1728952198190,0.00076,66385.0,66381.0,0.3608]
[1728952198389,0.0035,66395.0,66384.0,0.5312]
[1728952198695,0.075316,66397.0,66396.0,0.075317]
[1728952198999,0.075316,66397.0,66396.0,0.075717]
[1728952199192,0.075316,66397.0,66396.0,0.0004]
[1728952199688,0.27192214,66397.0,66396.0,0.0004]
[1728952199995,0.27192214,66397.0,66396.0,0.0024]
[1728952200192,0.27192214,66397.0,66378.0,0.2056642]
[1728952200193,1.00853877,66397.0,66378.0,0.2056642]
[1728952200394,1.00853877,66397.0,66377.0,0.2717]
[1728952200395,0.075342,66374.0,66373.0,0.00164]
[1728952200588,0.88727463,66374.0,66373.0,0.0004]
[1728952200989,1.24807463,66374.0,66373.0,0.0004]
[1728952201287,0.88727463,66374.0,66365.0,0.00480038]
[1728952201492,0.0004,66370.0,66369.0,0.436147]
[1728952201691,0.81233263,66370.0,66369.0,0.436147]
[1728952201895,0.81233263,66370.0,66369.0,0.606147]
[1728952202300,0.81233263,66370.0,66369.0,0.245347]
[1728952202493,0.64572168,66370.0,66369.0,1.297347]
[1728952202788,0.81233263,66370.0,66369.0,1.306347]
[1728952202990,0.81233263,66370.0,66369.0,1.312347]
[1728952203184,0.35961394,66370.0,66369.0,1.312347]
[1728952203379,0.19300299,66370.0,66369.0,1.312347]
[1728952203586,0.16370656,66370.0,66369.0,0.712347]
[1728952203779,0.16370656,66370.0,66369.0,0.015]
[1728952203780,0.23905256,66370.0,66369.0,0.015]
[1728952203982,0.69450656,66370.0,66365.0,0.00480038]
[1728952204181,0.245351,66366.0,66365.0,0.00480038]
[1728952204382,0.23865756,66366.0,66365.0,0.00480038]
[1728952204685,0.28985756,66366.0,66365.0,0.00480038]
[1728952204885,0.28985756,66366.0,66347.0,0.0519]
[1728952205197,0.28985756,66366.0,66337.0,0.0004]
[1728952205198,0.075364,66355.0,66345.0,0.075374]
[1728952205489,0.49618613,66351.0,66344.0,0.1704]
[1728952205691,0.52410656,66351.0,66344.0,0.0004]
[1728952205994,0.075374,66346.0,66344.0,0.0004]
[1728952206292,0.52410656,66345.0,66344.0,0.0004]
[1728952206507,0.59615917,66345.0,66344.0,0.0004]
[1728952206696,0.07538,66340.0,66337.0,0.0004]
[1728952207397,0.23868656,66340.0,66337.0,0.0004]
[1728952207597,0.57944346,66340.0,66337.0,0.0004]
[1728952207799,0.57944346,66340.0,66315.0,0.3608]
[1728952207800,0.42330656,66340.0,66315.0,0.3608]
[1728952207985,0.21060209,66327.0,66315.0,0.3608]
[1728952208186,0.13520709,66323.0,66315.0,0.436208]
[1728952208487,0.10132038,66322.0,66316.0,0.26]
[1728952208698,0.13520709,66327.0,66325.0,0.075397]
[1728952208993,0.09751131,66326.0,66325.0,0.436197]
[1728952209293,0.09751131,66326.0,66325.0,1.036197]
[1728952209482,0.09751131,66326.0,66325.0,1.488517]
[1728952209688,0.04512125,66326.0,66325.0,1.488517]
[1728952209893,0.04512125,66326.0,66325.0,1.150517]
[1728952210098,0.04512125,66326.0,66325.0,1.389717]
[1728952210295,0.3608,66330.0,66327.0,0.075395]
[1728952210695,0.3608,66330.0,66329.0,0.0004]
[1728952211390,0.3608,66337.0,66330.0,0.075391]
[1728952211588,0.3608,66337.0,66336.0,0.0004]
[1728952212099,0.0004,66338.0,66336.0,0.2604]
[1728952212285,0.0004,66338.0,66337.0,0.2604]
[1728952212490,0.0004,66338.0,66337.0,1.31264]
[1728952214900,0.0074,66338.0,66337.0,1.31364]
[1728952215200,0.0134,66338.0,66337.0,1.31464]
[1728952215404,0.0064,66338.0,66337.0,1.31364]
[1728952215900,0.0004,66338.0,66337.0,0.71264]
[1728952216792,0.0024,66338.0,66337.0,0.71264]
[1728952217597,0.0024,66338.0,66337.0,0.2604]
[1728952217996,0.0024,66338.0,66337.0,0.71264]
[1728952218405,0.0024,66338.0,66337.0,0.0004]
[1728952218603,0.3632,66338.0,66337.0,0.0004]
[1728952219105,0.4142,66338.0,66337.0,0.0004]
[1728952219998,0.4142,66338.0,66329.0,0.0004]
[1728952219999,0.07539,66332.0,66329.0,0.0004]
[1728952220298,0.3608,66330.0,66329.0,0.0004]
[1728952220690,0.436191,66330.0,66329.0,0.0004]
[1728952221094,0.3608,66330.0,66329.0,0.075793]
[1728952221300,0.44124951,66338.0,66336.0,0.075384]
[1728952221301,0.4146,66338.0,66336.0,0.075384]
[1728952221597,0.3636,66338.0,66337.0,0.0004]
[1728952221793,0.3616,66338.0,66337.0,0.075784]
[1728952222493,0.436982,66338.0,66337.0,0.0004]
[1728952222697,0.438982,66338.0,66337.0,0.0004]
[1728952223294,0.3636,66338.0,66337.0,0.0004]
[1728952223607,0.0028,66338.0,66337.0,0.0004]
[1728952223902,0.0028,66338.0,66337.0,0.075784]
[1728952226709,0.3636,66338.0,66337.0,0.075784]
[1728952228099,0.3636,66338.0,66337.0,0.0004]
[1728952228405,0.075391,66330.0,66329.0,0.0004]
[1728952228611,0.436191,66330.0,66329.0,0.0004]
[1728952228904,0.436191,66330.0,66329.0,0.075793]
[1728952228905,0.3608,66330.0,66329.0,0.075793]
[1728952229101,0.3608,66330.0,66329.0,0.0004]
[1728952229302,0.3608,66330.0,66329.0,0.075793]
[1728952229702,0.3608,66330.0,66329.0,0.081793]
[1728952229995,0.3608,66330.0,66329.0,0.251793]
[1728952230404,0.3608,66330.0,66329.0,0.704073]
[1728952230902,0.3618,66330.0,66329.0,0.713073]
[1728952232907,0.3618,66330.0,66329.0,0.260793]
[1728952233304,0.04552478,66330.0,66329.0,0.260793]
[1728952234209,0.0455123,66330.0,66329.0,0.260793]
[1728952234900,0.001,66330.0,66329.0,1.483073]
[1728952235213,0.0455123,66330.0,66329.0,1.483073]
[1728952235719,0.0455123,66330.0,66329.0,1.843873]
[1728952237003,0.0455123,66330.0,66329.0,1.673873]
[1728952237401,0.0455123,66330.0,66329.0,1.843873]
[1728952237917,0.0455123,66330.0,66329.0,1.673873]
[1728952238408,0.0455123,66330.0,66329.0,1.843873]
[1728952238616,0.0455123,66330.0,66329.0,1.86539689]
[1728952239120,0.04589249,66330.0,66329.0,1.86539689]
[1728952239312,0.04589249,66330.0,66329.0,1.69539689]
[1728952239913,0.04589249,66330.0,66329.0,1.86539689]
[1728952240112,0.13625039,66338.0,66329.0,1.94078989]
[1728952240315,0.0012,66338.0,66337.0,0.245784]
[1728952241112,0.0012,66338.0,66337.0,0.29064511]
[1728952243114,0.0012,66338.0,66337.0,0.04526111]
[1728952243115,0.078582,66338.0,66337.0,0.04526111]
[1728952243317,0.078582,66338.0,66337.0,0.0004]
[1728952244421,0.078582,66338.0,66337.0,0.075784]
[1728952245216,0.0032,66338.0,66337.0,0.075784]
[1728952247309,0.0032,66338.0,66337.0,0.12064511]
[1728952247709,0.0032,66338.0,66337.0,0.075784]
[1728952251319,0.0032,66338.0,66337.0,0.12064511]
[1728952251542,0.0032,66338.0,66337.0,0.075784]
[1728952252923,0.0032,66338.0,66337.0,0.12064511]
[1728952253224,0.0004,66340.0,66339.0,0.075381]
[1728952253423,0.0004,66340.0,66339.0,0.412598]
[1728952253725,0.0004,66340.0,66339.0,0.33780796]
[1728952254326,0.0004,66340.0,66339.0,0.3205468]
[1728952254529,0.0004,66340.0,66339.0,0.4125211]
[1728952254725,0.0004,66340.0,66339.0,0.3205468]
[1728952254926,0.0004,66340.0,66339.0,0.245781]
[1728952255126,0.0054,66340.0,66339.0,0.245781]
[1728952255323,0.30793501,66340.0,66337.0,0.3428056]
[1728952255523,0.0054,66340.0,66339.0,0.245381]
[1728952255831,0.76615512,66340.0,66339.0,0.075381]
[1728952256028,0.40535512,66340.0,66339.0,0.245381]
[1728952256418,0.40535512,66340.0,66339.0,0.07648941]
[1728952256927,0.40535512,66340.0,66339.0,0.15187041]
[1728952257323,0.40535512,66340.0,66333.0,0.0592622]
[1728952257534,0.39995512,66339.0,66338.0,0.075382]
[1728952258228,0.30247284,66339.0,66338.0,0.075382]
[1728952258426,0.30247284,66339.0,66332.0,0.25394741]
[1728952258617,0.0034,66340.0,66332.0,0.25394741]
[1728952258618,0.30247284,66338.0,66334.0,0.075387]
[1728952258819,0.30247284,66337.0,66334.0,0.075387]
[1728952259039,0.30247284,66336.0,66335.0,0.075386]
[1728952259236,0.30247284,66336.0,66335.0,0.245386]
[1728952259727,0.54340768,66336.0,66335.0,0.245386]
[1728952260522,0.30247284,66336.0,66335.0,0.245386]
[1728952260927,0.4639331,66336.0,66329.0,0.0004]
[1728952261233,0.09756249,66336.0,66335.0,0.003]
[1728952261424,0.09756249,66336.0,66330.0,0.075391]
[1728952261425,0.07539,66331.0,66330.0,0.075391]
[1728952261631,0.31061862,66331.0,66330.0,0.075391]
[1728952262127,0.23522862,66331.0,66330.0,0.075391]
[1728952262635,0.23522862,66331.0,66330.0,0.245391]
[1728952262926,0.47619976,66331.0,66330.0,0.245391]
[1728952263329,0.28726439,66331.0,66330.0,0.245391]
[1728952263627,0.24097114,66331.0,66330.0,0.245391]
[1728952263836,0.3618,66331.0,66330.0,0.253391]
[1728952264022,0.3618,66331.0,66330.0,0.258391]
[1728952265730,0.43719,66331.0,66330.0,0.258391]
[1728952265930,0.43719,66331.0,66330.0,0.088391]
[1728952267928,0.43719,66331.0,66330.0,0.013]
[1728952268832,0.075401,66322.0,66321.0,0.0035]
[1728952269136,0.99405334,66322.0,66312.0,0.0035]
[1728952269339,0.075413,66311.0,66310.0,0.075414]
[1728952269633,0.075416,66309.0,66306.0,0.075419]
[1728952269839,0.3608,66307.0,66306.0,0.075419]
[1728952270234,0.436218,66307.0,66306.0,0.075419]
[1728952270439,0.53208217,66307.0,66294.0,0.10261949]
[1728952270626,0.3608,66300.0,66299.0,0.075426]
[1728952270825,0.53208217,66300.0,66299.0,0.075426]
[1728952271235,0.075429,66298.0,66294.0,0.075432]
[1728952271437,0.53208217,66300.0,66296.0,0.07543]
[1728952271438,0.11717274,66297.0,66296.0,0.07543]
[1728952271737,0.11717274,66297.0,66296.0,0.24543]
[1728952272330,0.11717274,66297.0,66296.0,0.1451623]
[1728952272737,0.11717274,66297.0,66296.0,0.2205923]
[1728952272940,0.11717274,66297.0,66296.0,0.2335923]
[1728952272941,0.11817274,66297.0,66296.0,0.2335923]
[1728952273832,0.11480718,66297.0,66296.0,0.2335923]
[1728952274134,0.11580718,66297.0,66296.0,0.09643]
[1728952274342,0.19123618,66297.0,66296.0,0.09643]
[1728952274542,0.24534561,66297.0,66296.0,0.021]
[1728952274737,1.29786561,66297.0,66280.0,0.17]
[1728952275036,0.3608,66285.0,66284.0,0.075444]
[1728952275247,0.52871661,66285.0,66284.0,0.075444]
[1728952275432,0.52871661,66285.0,66284.0,0.245444]
[1728952276035,0.63946572,66285.0,66284.0,0.245444]
[1728952276237,0.11380718,66285.0,66284.0,0.245444]
[1728952276838,0.11380718,66285.0,66284.0,1.298044]
[1728952277237,0.16485854,66285.0,66284.0,1.298044]
[1728952277530,0.11480718,66285.0,66284.0,1.305044]
[1728952277735,0.11580718,66285.0,66284.0,1.305044]
[1728952278146,0.06936494,66285.0,66284.0,1.305044]
[1728952278442,0.001,66285.0,66284.0,1.34989221]
[1728952278639,0.3608,66297.0,66296.0,0.07543]
[1728952278845,0.3608,66297.0,66296.0,0.07583]
[1728952279839,0.17,66302.0,66296.0,0.0004]
[1728952279840,0.02180377,66301.0,66296.0,0.0004]
[1728952280043,0.09722877,66301.0,66298.0,0.075428]
[1728952280240,0.09722877,66301.0,66298.0,0.075828]
[1728952280838,0.4098,66299.0,66298.0,0.075828]
[1728952281539,0.4108,66299.0,66298.0,0.077828]
[1728952281843,0.4118,66299.0,66298.0,0.084828]
[1728952284439,0.3628,66299.0,66298.0,0.084828]
[1728952286054,0.608227,66299.0,66298.0,0.084828]
[1728952286255,0.075439,66289.0,66288.0,0.075438]
[1728952286550,0.606239,66289.0,66288.0,0.075438]
[1728952287155,0.606239,66289.0,66284.0,0.04484821]
[1728952287345,0.606243,66285.0,66284.0,0.12029021]
[1728952287754,0.606243,66285.0,66284.0,0.04484821]
[1728952288554,0.606243,66285.0,66284.0,0.12029221]
[1728952288748,0.436243,66285.0,66284.0,0.12229221]
[1728952289067,0.46357215,66285.0,66284.0,0.12229221]
[1728952289753,0.46457215,66285.0,66284.0,0.12229221]
[1728952290257,0.38912915,66285.0,66284.0,0.12229221]
[1728952290447,0.38812915,66285.0,66284.0,0.075444]
[1728952290637,0.38912915,66285.0,66284.0,0.075444]
[1728952290842,0.39012915,66285.0,66284.0,0.075444]
[1728952291548,0.46557215,66285.0,66284.0,0.075444]
[1728952291846,0.38912915,66285.0,66284.0,0.075444]
[1728952292053,0.39012915,66285.0,66284.0,0.245444]
[1728952293450,0.38912915,66285.0,66284.0,0.245444]
[1728952293750,0.39012915,66285.0,66284.0,0.245444]
[1728952294643,0.38912915,66285.0,66284.0,0.245444]
[1728952297054,0.38912915,66285.0,66284.0,0.30524162]
[1728952297254,0.38912915,66285.0,66284.0,0.245444]
[1728952297255,0.02832915,66285.0,66284.0,0.245444]
[1728952298158,0.3608,66293.0,66292.0,0.075435]
[1728952298159,0.436235,66293.0,66292.0,0.075435]
[1728952298356,0.606235,66293.0,66292.0,0.06029974]
[1728952298663,0.606235,66293.0,66292.0,0.0004]
[1728952298952,0.606235,66293.0,66292.0,0.075835]
[1728952298953,0.10310873,66293.0,66292.0,0.075835]
[1728952299151,0.10310873,66293.0,66292.0,0.13573474]
[1728952299359,0.02767373,66293.0,66292.0,0.075835]
[1728952299559,0.126333,66294.0,66292.0,0.075835]
[1728952299560,0.126333,66294.0,66293.0,0.075434]
[1728952299750,0.126333,66294.0,66293.0,0.075834]
[1728952300555,0.1939376,66294.0,66293.0,0.075834]
[1728952300750,0.1516428,66294.0,66293.0,0.075834]
[1728952301053,0.1546428,66294.0,66293.0,0.075834]
[1728952302057,0.20096019,66294.0,66293.0,0.075834]
[1728952302446,0.33571343,66294.0,66293.0,0.075834]
[1728952302758,0.58114543,66294.0,66293.0,0.075834]
[1728952302964,0.44639219,66294.0,66293.0,0.075834]
[1728952303662,0.075434,66293.0,66292.0,0.0004]
[1728952303849,0.64187599,66293.0,66292.0,0.0004]
[1728952304252,0.64187599,66293.0,66292.0,0.075835]
[1728952304653,0.77748146,66293.0,66292.0,0.075835]
[1728952304948,0.64187599,66293.0,66292.0,0.0004]
[1728952305653,0.64183741,66293.0,66292.0,0.0004]
[1728952306051,0.14499721,66293.0,66292.0,0.075835]
[1728952306361,0.06956321,66293.0,66292.0,0.075835]
[1728952306564,0.07456321,66293.0,66292.0,0.075835]
[1728952307260,0.22588196,66293.0,66292.0,0.075835]
[1728952307462,0.12088134,66293.0,66292.0,0.075835]
[1728952307855,0.007,66293.0,66292.0,0.075835]
[1728952308063,0.12088134,66293.0,66292.0,0.075835]
[1728952308758,0.3608,66295.0,66294.0,0.075432]
[1728952308959,0.3608,66295.0,66294.0,0.17938248]
[1728952309967,0.436231,66295.0,66294.0,0.17938248]
[1728952310161,0.443231,66295.0,66294.0,0.1793733]
[1728952310861,0.447231,66295.0,66294.0,0.1509019]
[1728952311055,0.447231,66295.0,66294.0,0.25451577]
[1728952311258,0.617231,66295.0,66294.0,0.1791686]
[1728952311455,0.075434,66293.0,66292.0,0.0004]
[1728952312062,0.075438,66289.0,66286.0,0.0750699]
[1728952312267,0.3608,66287.0,66278.0,0.0035]
[1728952312561,0.075453,66276.0,66275.0,0.075454]
[1728952312761,0.3608,66287.0,66275.0,0.075454]
[1728952312762,0.3608,66278.0,66277.0,0.075452]
[1728952312957,0.3608,66278.0,66277.0,0.17926752]
[1728952313156,1.67076,66285.0,66277.0,0.10381552]
[1728952313354,0.075446,66282.0,66281.0,0.075446]
[1728952313759,0.001,66287.0,66280.0,0.17]
[1728952313954,0.3608,66282.0,66281.0,0.17851982]
[1728952314176,0.3608,66282.0,66281.0,0.34851982]
[1728952314670,0.3618,66282.0,66281.0,0.35545515]
[1728952315058,0.3618,66282.0,66281.0,0.35549979]
[1728952315265,0.3618,66282.0,66281.0,0.252447]
[1728952315467,0.3618,66282.0,66281.0,0.082447]
[1728952315661,0.437246,66282.0,66281.0,0.082447]
[1728952316465,0.438246,66282.0,66281.0,0.085447]
[1728952318263,0.438246,66282.0,66281.0,0.01]
[1728952318767,0.075454,66275.0,66274.0,0.0035]
[1728952318963,0.436254,66275.0,66274.0,0.075455]
[1728952319967,0.4128,66275.0,66274.0,0.245455]
[1728952320470,0.4128,66275.0,66274.0,0.253455]
[1728952320471,0.4138,66275.0,66274.0,0.253455]
[1728952320767,0.4148,66275.0,66274.0,0.083455]
[1728952320970,0.490254,66275.0,66274.0,0.083455]
[1728952321773,0.490254,66275.0,66274.0,0.253455]
[1728952321774,0.4148,66275.0,66274.0,0.253455]
[1728952322078,0.3628,66275.0,66274.0,0.253455]
[1728952322666,0.3628,66275.0,66274.0,0.083455]
[1728952322974,0.608254,66275.0,66274.0,0.008]
[1728952323357,0.658454,66275.0,66274.0,0.008]
[1728952323565,0.658454,66275.0,66265.0,0.078965]
[1728952323566,0.075464,66266.0,66265.0,0.078965]
[1728952323859,0.17,66264.0,66258.0,0.05]
[1728952324066,0.16854369,66263.0,66258.0,0.05]
[1728952324372,0.17,66264.0,66237.0,0.3608]
[1728952324373,0.3608,66259.0,66237.0,0.3608]
[1728952324576,0.3608,66259.0,66245.0,0.075488]
[1728952324577,0.17,66246.0,66245.0,0.075488]
[1728952324771,0.17,66246.0,66241.0,0.075493]
[1728952324772,0.17,66242.0,66241.0,0.075493]
[1728952324962,0.15054903,66242.0,66241.0,0.075493]
[1728952325270,0.06806553,66242.0,66241.0,0.245493]
[1728952326062,0.06906553,66242.0,66241.0,0.245493]
[1728952326469,0.03797951,66242.0,66241.0,0.245493]
[1728952326673,0.06784953,66242.0,66241.0,0.245493]
[1728952327075,0.11520075,66242.0,66241.0,0.245493]
[1728952327260,0.06884953,66242.0,66241.0,0.245493]
[1728952327973,0.18346773,66242.0,66241.0,1.298373]
[1728952328159,0.06884953,66242.0,66241.0,1.298373]
[1728952328766,0.06884953,66242.0,66241.0,0.698373]
[1728952328963,0.03187002,66242.0,66241.0,0.245493]
[1728952330063,0.06884706,66242.0,66241.0,0.245493]
[1728952330272,0.06884731,66242.0,66241.0,0.245493]
[1728952330472,0.14433931,66242.0,66241.0,0.075493]
[1728952330673,0.077492,66242.0,66241.0,0.075493]
[1728952330879,0.075498,66237.0,66236.0,0.075497]
[1728952331068,0.436298,66237.0,66236.0,0.075497]
[1728952331771,0.3608,66237.0,66236.0,0.075497]
[1728952332277,0.437297,66237.0,66236.0,0.075497]
[1728952332667,0.607297,66237.0,66236.0,0.075497]
[1728952333068,0.607297,66237.0,66227.0,0.17]
[1728952333069,0.075503,66233.0,66232.0,0.075502]
[1728952333266,0.245503,66233.0,66232.0,0.075502]
[1728952333471,0.245503,66233.0,66224.0,0.0533]
[1728952333777,0.3608,66227.0,66226.0,0.07551]
[1728952334476,0.436309,66227.0,66226.0,0.07551]
[1728952334983,0.436309,66227.0,66217.0,0.0528]
[1728952334984,0.03772649,66221.0,66220.0,0.075515]
[1728952335976,0.07552,66218.0,66217.0,0.075519]
[1728952336281,0.5308,66221.0,66217.0,0.075519]
[1728952336469,0.46431737,66221.0,66220.0,0.075917]
[1728952336868,0.438317,66221.0,66220.0,0.075917]
[1728952338178,0.437317,66221.0,66220.0,0.075917]
[1728952338979,0.607317,66221.0,66220.0,0.0004]
[1728952339168,0.608317,66221.0,66220.0,0.0004]
[1728952339366,0.608317,66221.0,66220.0,0.075917]
[1728952340571,0.5328,66221.0,66220.0,0.075917]
[1728952342280,0.3628,66221.0,66220.0,0.075917]
[1728952342775,0.30988842,66221.0,66220.0,0.075917]
[1728952343483,0.30988842,66221.0,66220.0,0.129517]
[1728952343874,0.26453697,66221.0,66220.0,0.129517]
[1728952344385,0.0504,66233.0,66232.0,0.075503]
[1728952344586,0.125697,66238.0,66232.0,0.075503]
[1728952344587,0.436301,66235.0,66234.0,0.075499]
[1728952344885,1.32753495,66235.0,66232.0,0.0004]
[1728952345081,1.32753495,66235.0,66220.0,0.0004]
[1728952345082,0.17,66223.0,66222.0,0.075514]
[1728952345283,0.245513,66223.0,66222.0,0.075514]
[1728952345481,0.295913,66223.0,66222.0,0.075514]
[1728952346375,0.296913,66223.0,66222.0,0.075514]
[1728952348082,0.297913,66223.0,66222.0,0.075514]
[1728952348587,0.296913,66223.0,66222.0,0.075514]
[1728952348781,0.297913,66223.0,66222.0,0.075514]
[1728952349581,0.075516,66221.0,66220.0,0.0004]
[1728952350474,0.075516,66221.0,66217.0,0.07552]
[1728952350676,0.075516,66221.0,66213.0,0.075524]
[1728952350677,0.075525,66214.0,66213.0,0.075524]
[1728952351675,0.606321,66218.0,66217.0,0.07552]
[1728952351880,0.075543,66199.0,66193.0,0.02765803]
[1728952352086,0.5308,66199.0,66184.0,0.17]
[1728952352386,0.5308,66199.0,66178.0,0.3608]
[1728952352387,0.075556,66188.0,66187.0,0.075554]
[1728952352579,0.075569,66175.0,66173.0,0.075569]
[1728952352780,0.075563,66180.0,66179.0,0.075563]
[1728952353087,0.3608,66181.0,66180.0,0.075562]
[1728952353393,0.3608,66181.0,66180.0,0.075962]
[1728952354784,0.001,66181.0,66180.0,0.075962]
[1728952355175,0.002,66181.0,66180.0,0.075962]
[1728952355685,0.002,66181.0,66180.0,0.25638738]
[1728952356679,0.002,66181.0,66180.0,0.075962]
[1728952357681,0.0035,66190.0,66180.0,0.63472102]
[1728952357891,0.075549,66192.0,66191.0,0.075548]
[1728952358085,0.1101,66198.0,66191.0,0.075548]
[1728952358383,0.1101,66198.0,66191.0,0.0004]
[1728952358384,0.245549,66192.0,66191.0,0.0004]
[1728952358584,0.845549,66192.0,66191.0,0.0004]
[1728952358784,1.298789,66192.0,66191.0,0.0004]
[1728952358987,0.075561,66181.0,66179.0,0.0004]
[1728952359190,0.075561,66181.0,66169.0,0.075575]
[1728952359191,0.07557,66173.0,66169.0,0.0035]
[1728952359380,0.075577,66167.0,66166.0,0.07572462]
[1728952359580,0.075577,66167.0,66160.0,0.079085]
[1728952359581,0.245578,66167.0,66162.0,0.075583]
[1728952359786,0.17,66163.0,66158.0,0.07496462]
[1728952359986,0.17,66159.0,66158.0,0.075586]
[1728952360184,0.17,66159.0,66158.0,0.15055062]
[1728952360386,0.17,66159.0,66158.0,0.075586]